[Event "Kupreichik Memorial Rapid 2019"]
[Site "Minsk"]
[Date "2019.08.15"]
[Round "3.28"]
[White "Yasiukovich, Sergei"]
[Black "Svjatocho, Andrej"]
[Result "0-1"]
[ECO "B02"]
[WhiteElo "1529"]
[BlackElo "1995"]
[Annotator "NA"]
[PlyCount "58"]
[EventDate "2019.08.15"]
[EventType "swiss"]
[EventCountry "BLR"]
[SourceTitle "playchess.com"]
[Source "ChessBase"]
[SourceQuality "1"]
[TimeControl "900+10"]

1. e4 {[%emt 0:00:00]} Nf6 {[%emt 0:00:00]} 2. Nc3 {[%emt 0:00:00]} d5 {[%emt 0:00:00]} 3. e5 {[%emt 0:00:14]} d4 {[%emt 0:00:00]} 4. exf6 {[%emt 0:00:11]} dxc3 {[%emt 0:00:02]} 5. bxc3 {[%emt 0:00:05]} gxf6 {[%emt 0:00:22]} 6. d4 {[%emt 0:00:33]} e6 {[%emt 0:00:39]} 7. Nf3 {[%emt 0:00:12]} Bg7 {[%emt 0:00:14]} 8. Bd3 {[%emt 0:00:35]} c5 {[%emt 0:00:42]} 9. O-O {[%emt 0:00:15]} Nd7 {[%emt 0:00:14]} 10. Re1 {[%emt 0:00:53]} O-O {[%emt 0:00:19]} 11. Bf4 {[%emt 0:02:13]} Re8 {[%emt 0:00:47]} 12. Qd2 {[%emt 0:01:05]} Nf8 {[%emt 0:00:39]} 13. Rab1 {[%emt 0:01:38]} Ng6 {[%emt 0:00:07]} 14. Be3 {[%emt 0:04:42]} Qc7 {[%emt 0:01:52]} 15. Bb5 {[%emt 0:01:23]} Bd7 {[%emt 0:00:22]} 16. dxc5 {[%emt 0:00:24]} Rad8 {[%emt 0:00:36]} 17. Qd6 {[%emt 0:00:32]} Qc8 {[%emt 0:00:33]} 18. Qg3 {[%emt 0:00:28]} Bc6 {[%emt 0:01:30]} 19. Bxc6 {[%emt 0:00:24]} bxc6 {[%emt 0:00:16]} 20. h4 {[%emt 0:00:14]} h5 {[%emt 0:00:49]} 21. Rb2 {[%emt 0:00:52]} e5 {[%emt 0:00:38]} 22. Reb1 {[%emt 0:00:13]} f5 {[%emt 0:00:31]} 23. Qg5 {[%emt 0:00:02]} f4 {[%emt 0:00:32]} 24. Bd2 {[%emt 0:00:25]} e4 {[%emt 0:01:52]} 25. Nd4 {[%emt 0:00:05]} Rd5 {[%emt 0:00:33]} 26. Bxf4 {[%emt 0:01:05]} Rxg5 {[%emt 0:00:08]} 27. Bxg5 {[%emt 0:00:04]} Be5 {[%emt 0:01:12]} 28. Rb7 {[%emt 0:00:23]} f6 {[%emt 0:00:38]} 29. Bh6 {[%emt 0:00:29]} Re7 {[%emt 0:00:07]} 0-1

[Event "Kupreichik Memorial Rapid 2019"]
[Site "Minsk"]
[Date "2019.08.15"]
[Round "3.29"]
[White "Kiryliuk, Ilya"]
[Black "Melekhov, Artyom"]
[Result "1-0"]
[ECO "C03"]
[WhiteElo "1948"]
[BlackElo "1471"]
[Annotator "NA"]
[PlyCount "81"]
[EventDate "2019.08.15"]
[EventType "swiss"]
[EventCountry "BLR"]
[SourceTitle "playchess.com"]
[Source "ChessBase"]
[SourceQuality "1"]
[TimeControl "900+10"]

1. e4 {[%emt 0:00:00]} e6 {[%emt 0:00:00]} 2. d4 {[%emt 0:00:00]} d5 {[%emt 0:00:00]} 3. Nd2 {[%emt 0:00:00]} dxe4 {[%emt 0:00:18]} 4. Nxe4 {[%emt 0:00:00]} Nf6 {[%emt 0:00:05]} 5. Nxf6+ {[%emt 0:00:24]} Qxf6 {[%emt 0:00:02]} 6. Nf3 {[%emt 0:00:02]} h6 {[%emt 0:00:08]} 7. Bd3 {[%emt 0:00:04]} Bd7 {[%emt 0:00:03]} 8. Ne5 {[%emt 0:00:30]} Bd6 {[%emt 0:03:37]} 9. Qe2 {[%emt 0:00:12]} Bxe5 {[%emt 0:02:08]} 10. dxe5 {[%emt 0:00:02]} Qe7 {[%emt 0:00:00]} 11. Qg4 {[%emt 0:00:20]} g6 {[%emt 0:00:07]} 12. O-O {[%emt 0:02:54]} Nc6 {[%emt 0:00:05]} 13. Re1 {[%emt 0:00:12]} Nb4 {[%emt 0:01:48]} 14. Be4 {[%emt 0:00:03]} Bc6 {[%emt 0:00:01]} 15. a3 {[%emt 0:00:41]} Bxe4 {[%emt 0:01:15]} 16. Qxe4 {[%emt 0:00:02]} Nc6 {[%emt 0:00:01]} 17. b4 {[%emt 0:00:09]} a6 {[%emt 0:00:04]} 18. c4 {[%emt 0:00:05]} h5 {[%emt 0:00:10]} 19. h4 {[%emt 0:00:10]} O-O {[%emt 0:00:58]} 20. Bg5 {[%emt 0:00:03]} Qd7 {[%emt 0:00:38]} 21. Rad1 {[%emt 0:00:05]} Qc8 {[%emt 0:00:04]} 22. b5 {[%emt 0:00:57]} axb5 {[%emt 0:00:33]} 23. cxb5 {[%emt 0:00:02]} Nb8 {[%emt 0:01:37]} 24. g4 {[%emt 0:01:05]} hxg4 {[%emt 0:01:39]} 25. Qxg4 {[%emt 0:00:52]} Nd7 {[%emt 0:00:15]} 26. h5 {[%emt 0:00:11]} Re8 {[%emt 0:03:02]} 27. hxg6 {[%emt 0:00:45]} fxg6 {[%emt 0:00:01]} 28. Bf6 {[%emt 0:00:06]} Kf7 {[%emt 0:00:09]} 29. Rxd7+ {[%emt 0:00:11]} Qxd7 {[%emt 0:00:13]} 30. Qh4 {[%emt 0:00:03]} Rf8 {[%emt 0:00:39]} 31. Qh7+ {[%emt 0:01:57]} Ke8 {[%emt 0:00:01]} 32. Qxg6+ {[%emt 0:00:01]} Qf7 {[%emt 0:00:01]} 33. Qe4 {[%emt 0:00:03]} Rg8+ {[%emt 0:00:30]} 34. Kf1 {[%emt 0:00:01]} Qd7 {[%emt 0:00:02]} 35. Qe2 {[%emt 0:00:30]} c6 {[%emt 0:00:21]} 36. Rd1 {[%emt 0:00:04]} Qh7 {[%emt 0:00:06]} 37. Qf3 {[%emt 0:00:23]} cxb5 {[%emt 0:00:18]} 38. Rd6 {[%emt 0:02:20]} Qb1+ {[%emt 0:00:03]} 39. Rd1 {[%emt 0:00:01]} Qf5 {[%emt 0:00:02]} 40. Qb3 {[%emt 0:00:05]} Qe4 {[%emt 0:00:19]} 41. Qxe6+ {[%emt 0:00:03] Qg6} 1-0

[Event "Kupreichik Memorial Rapid 2019"]
[Site "Minsk"]
[Date "2019.08.15"]
[Round "3.30"]
[White "Oblamski, Vladimir"]
[Black "Karmishyn, Vadzim"]
[Result "1-0"]
[ECO "B22"]
[WhiteElo "2088"]
[BlackElo "1494"]
[Annotator "NA"]
[PlyCount "67"]
[EventDate "2019.08.15"]
[EventType "swiss"]
[EventCountry "BLR"]
[SourceTitle "playchess.com"]
[Source "ChessBase"]
[SourceQuality "1"]
[TimeControl "900+10"]

1. e4 {[%emt 0:00:00]} c5 {[%emt 0:00:00]} 2. c3 {[%emt 0:00:00]} Nf6 {[%emt 0:00:14]} 3. e5 {[%emt 0:00:00]} Nd5 {[%emt 0:00:10]} 4. d4 {[%emt 0:00:00]} cxd4 {[%emt 0:00:02]} 5. cxd4 {[%emt 0:00:00]} Nc6 {[%emt 0:00:05]} 6. Nc3 {[%emt 0:01:08]} Qa5 {[%emt 0:01:27]} 7. Nf3 {[%emt 0:00:22]} Nxc3 {[%emt 0:00:39]} 8. bxc3 {[%emt 0:00:03]} Qxc3+ {[%emt 0:00:20]} 9. Bd2 {[%emt 0:00:01]} Qb2 {[%emt 0:00:22]} 10. Rb1 {[%emt 0:01:55]} Qxa2 {[%emt 0:00:16]} 11. Bd3 {[%emt 0:01:01]} Qd5 {[%emt 0:01:04]} 12. Rb5 {[%emt 0:00:19]} Qa2 {[%emt 0:00:28]} 13. O-O {[%emt 0:00:51]} a6 {[%emt 0:00:14]} 14. Rb3 {[%emt 0:00:38]} Qa4 {[%emt 0:01:37]} 15. Bc3 {[%emt 0:01:55]} e6 {[%emt 0:01:04]} 16. Qc2 {[%emt 0:01:09]} Na5 {[%emt 0:02:22]} 17. Bxa5 {[%emt 0:00:21]} Qxa5 {[%emt 0:00:02]} 18. Be4 {[%emt 0:01:04]} Rb8 {[%emt 0:01:05]} 19. Rc3 {[%emt 0:01:46]} Qd8 {[%emt 0:00:25]} 20. Rc1 {[%emt 0:00:09]} d5 {[%emt 0:01:09]} 21. exd6 {[%emt 0:01:03]} Bd7 {[%emt 0:00:10]} 22. Ne5 {[%emt 0:00:56]} Bxd6 {[%emt 0:00:48]} 23. Bxh7 {[%emt 0:02:06]} g6 {[%emt 0:01:16]} 24. Nxf7 {[%emt 0:00:35]} Bxh2+ {[%emt 0:01:11]} 25. Kf1 {[%emt 0:00:26]} Qf6 {[%emt 0:00:55]} 26. Bxg6 {[%emt 0:00:16]} Ke7 {[%emt 0:00:12]} 27. Rf3 {[%emt 0:00:33]} Rhc8 {[%emt 0:00:55]} 28. Qb2 {[%emt 0:00:32]} Rxc1+ {[%emt 0:00:31]} 29. Qxc1 {[%emt 0:00:01]} Qxd4 {[%emt 0:00:12]} 30. Qg5+ {[%emt 0:00:14]} Kf8 {[%emt 0:00:31]} 31. Ne5+ {[%emt 0:00:15]} Kg7 {[%emt 0:00:12]} 32. Qf6+ {[%emt 0:00:02]} Kg8 33. Qf7+ Kh8 34. Qh7# 1-0

[Event "Kupreichik Memorial Rapid 2019"]
[Site "Minsk"]
[Date "2019.08.15"]
[Round "3.31"]
[White "Shaban, Alena"]
[Black "Tarasionak, Arseni"]
[Result "1/2-1/2"]
[ECO "A05"]
[WhiteElo "2030"]
[BlackElo "1209"]
[Annotator "NA"]
[PlyCount "84"]
[EventDate "2019.08.15"]
[EventType "swiss"]
[EventCountry "BLR"]
[SourceTitle "playchess.com"]
[Source "ChessBase"]
[SourceQuality "1"]
[TimeControl "900+10"]

1. Nf3 {[%emt 0:00:00]} Nf6 {[%emt 0:00:00]} 2. g3 {[%emt 0:00:00]} g6 {[%emt 0:00:00]} 3. Bg2 {[%emt 0:00:00]} Bg7 {[%emt 0:00:00]} 4. O-O {[%emt 0:00:00]} O-O {[%emt 0:00:00]} 5. d3 {[%emt 0:00:00]} d5 {[%emt 0:00:05]} 6. Nbd2 {[%emt 0:00:02]} c5 {[%emt 0:00:01]} 7. e4 {[%emt 0:00:04]} dxe4 {[%emt 0:00:02]} 8. dxe4 {[%emt 0:00:05]} Nc6 {[%emt 0:00:05]} 9. c3 {[%emt 0:00:09]} Qc7 {[%emt 0:00:39]} 10. Qe2 {[%emt 0:00:46]} Rd8 {[%emt 0:00:15]} 11. Re1 {[%emt 0:00:58]} Ng4 {[%emt 0:00:04]} 12. Nf1 {[%emt 0:00:29]} Nge5 {[%emt 0:00:06]} 13. Bf4 {[%emt 0:00:24]} Nxf3+ {[%emt 0:00:31]} 14. Qxf3 {[%emt 0:00:16]} e5 {[%emt 0:00:01]} 15. Bg5 {[%emt 0:00:37]} f6 {[%emt 0:01:09]} 16. Be3 {[%emt 0:00:03]} b6 {[%emt 0:01:14]} 17. Rad1 {[%emt 0:00:19]} Ba6 {[%emt 0:00:04]} 18. Bc1 {[%emt 0:00:23]} Na5 {[%emt 0:00:27]} 19. Ne3 {[%emt 0:00:12]} Nc4 {[%emt 0:00:14]} 20. Nd5 {[%emt 0:00:09]} Qf7 {[%emt 0:00:40]} 21. Bf1 {[%emt 0:00:46]} b5 {[%emt 0:00:05]} 22. b3 {[%emt 0:01:14]} Nb6 {[%emt 0:00:16]} 23. Be3 {[%emt 0:02:11]} c4 {[%emt 0:01:37]} 24. bxc4 {[%emt 0:00:53]} Nxc4 {[%emt 0:00:39]} 25. Bc5 {[%emt 0:00:44]} Bb7 {[%emt 0:01:17]} 26. a4 {[%emt 0:02:34]} Bxd5 {[%emt 0:01:18]} 27. Rxd5 {[%emt 0:00:35]} Rxd5 {[%emt 0:00:21]} 28. exd5 {[%emt 0:00:02]} Nd2 {[%emt 0:00:12]} 29. Qd3 {[%emt 0:01:16]} Nxf1 30. Kxf1 {[%emt 0:00:01]} bxa4 {[%emt 0:00:42]} 31. c4 {[%emt 0:00:10]} Rc8 {[%emt 0:00:19]} 32. Ba3 {[%emt 0:00:35]} Bf8 {[%emt 0:00:34]} 33. Bxf8 {[%emt 0:01:05]} Kxf8 {[%emt 0:00:01]} 34. Ra1 {[%emt 0:00:08]} Qd7 {[%emt 0:00:34]} 35. Qa3+ {[%emt 0:00:12]} Ke8 {[%emt 0:00:28]} 36. Qxa4 {[%emt 0:00:06]} Qxa4 {[%emt 0:00:29]} 37. Rxa4 {[%emt 0:00:02]} Rc7 {[%emt 0:00:01]} 38. d6 {[%emt 0:00:20]} Rc6 {[%emt 0:00:08]} 39. Rxa7 {[%emt 0:00:33]} Rxd6 {[%emt 0:00:02]} 40. Rxh7 {[%emt 0:00:02]} Rc6 {[%emt 0:00:11]} 41. Rg7 {[%emt 0:00:45]} f5 {[%emt 0:00:26]} 42. Ke2 {[%emt 0:00:59]} Kf8 {[%emt 0:00:02]} 1/2-1/2

[Event "Kupreichik Memorial Rapid 2019"]
[Site "Minsk"]
[Date "2019.08.15"]
[Round "3.34"]
[White "Ostrovskiy, Viktor"]
[Black "Stanishevskij, Aleksandr"]
[Result "0-1"]
[ECO "B22"]
[WhiteElo "1453"]
[BlackElo "1830"]
[Annotator "NA"]
[PlyCount "70"]
[EventDate "2019.08.15"]
[EventType "swiss"]
[EventCountry "BLR"]
[SourceTitle "playchess.com"]
[Source "ChessBase"]
[SourceQuality "1"]
[TimeControl "900+10"]

1. e4 {[%emt 0:00:00]} c5 {[%emt 0:00:00]} 2. c3 {[%emt 0:00:00]} Nf6 {[%emt 0:00:19]} 3. e5 {[%emt 0:00:01]} Nd5 {[%emt 0:00:06]} 4. d4 {[%emt 0:00:03]} cxd4 {[%emt 0:00:05]} 5. cxd4 {[%emt 0:00:03]} d6 {[%emt 0:00:06]} 6. Bb5+ {[%emt 0:01:49]} Bd7 {[%emt 0:00:19]} 7. Bxd7+ {[%emt 0:00:06]} Qxd7 {[%emt 0:00:15]} 8. Nf3 {[%emt 0:00:09]} Nc6 {[%emt 0:00:31]} 9. O-O {[%emt 0:00:22]} e6 {[%emt 0:00:54]} 10. Nbd2 {[%emt 0:02:07]} Be7 {[%emt 0:00:41]} 11. Ne4 {[%emt 0:01:17]} O-O {[%emt 0:00:27]} 12. Bg5 {[%emt 0:01:18]} f6 {[%emt 0:02:10]} 13. exf6 {[%emt 0:00:26]} gxf6 {[%emt 0:00:17]} 14. Bh6 {[%emt 0:00:50]} Rf7 {[%emt 0:00:03]} 15. Ng3 {[%emt 0:02:33]} Kh8 {[%emt 0:00:28]} 16. Re1 {[%emt 0:00:23]} Rg8 {[%emt 0:00:47]} 17. Qe2 {[%emt 0:00:15]} Rg6 {[%emt 0:00:35]} 18. Bd2 {[%emt 0:00:14]} f5 {[%emt 0:00:21]} 19. Nf1 {[%emt 0:03:06]} Rfg7 {[%emt 0:01:14]} 20. g3 {[%emt 0:00:48]} Nd8 {[%emt 0:01:51]} 21. Ne3 {[%emt 0:00:49]} Nxe3 {[%emt 0:01:23]} 22. Qxe3 {[%emt 0:00:42]} Nf7 {[%emt 0:00:32]} 23. Bc3 {[%emt 0:00:22]} d5 {[%emt 0:00:42]} 24. Rad1 {[%emt 0:00:08]} h5 {[%emt 0:00:42]} 25. Ne5 {[%emt 0:00:06]} Nxe5 {[%emt 0:00:09]} 26. Qxe5 {[%emt 0:00:04]} Bd6 {[%emt 0:00:16]} 27. Qe2 {[%emt 0:00:19]} Rh7 {[%emt 0:00:26]} 28. Rd3 {[%emt 0:00:11]} h4 {[%emt 0:00:13]} 29. Re3 {[%emt 0:00:19]} hxg3 {[%emt 0:00:13]} 30. fxg3 {[%emt 0:00:06]} Rhh6 {[%emt 0:00:20]} 31. a3 {[%emt 0:00:08]} f4 {[%emt 0:00:50]} 32. Re5 {[%emt 0:00:18]} fxg3 {[%emt 0:00:12]} 33. hxg3 {[%emt 0:00:51]} Rxg3+ {[%emt 0:00:14]} 34. Kf2 {[%emt 0:00:01]} Qg7 {[%emt 0:00:57]} 35. Qf1 {[%emt 0:00:19]} Rh2+ {[%emt 0:00:09]} 0-1

[Event "Kupreichik Memorial Rapid 2019"]
[Site "Minsk"]
[Date "2019.08.15"]
[Round "3.36"]
[White "Kochetkov, Vitali"]
[Black "Patokova, Viktoriya"]
[Result "1-0"]
[ECO "A08"]
[WhiteElo "2266"]
[BlackElo "1503"]
[Annotator "NA"]
[PlyCount "63"]
[EventDate "2019.08.15"]
[EventType "swiss"]
[EventCountry "BLR"]
[SourceTitle "playchess.com"]
[Source "ChessBase"]
[SourceQuality "1"]
[TimeControl "900+10"]

1. Nf3 {[%emt 0:00:00]} d5 {[%emt 0:00:00]} 2. g3 {[%emt 0:00:07]} c5 {[%emt 0:00:00]} 3. Bg2 {[%emt 0:00:03]} Nc6 {[%emt 0:00:00]} 4. O-O {[%emt 0:00:06]} Nf6 {[%emt 0:00:05]} 5. d4 {[%emt 0:00:07]} cxd4 {[%emt 0:00:53]} 6. Nxd4 {[%emt 0:00:05]} e6 {[%emt 0:00:38]} 7. c4 {[%emt 0:00:17]} Qb6 {[%emt 0:00:47]} 8. Nxc6 {[%emt 0:00:26]} bxc6 {[%emt 0:00:04]} 9. Nc3 {[%emt 0:00:52]} Ba6 {[%emt 0:01:20]} 10. cxd5 {[%emt 0:01:12]} exd5 {[%emt 0:00:12]} 11. Qa4 {[%emt 0:00:38]} Rd8 {[%emt 0:02:42]} 12. Rd1 {[%emt 0:02:16]} Bc5 {[%emt 0:00:43]} 13. Qf4 {[%emt 0:01:02]} O-O {[%emt 0:00:22]} 14. Na4 {[%emt 0:00:13]} Qb4 {[%emt 0:00:58]} 15. Nxc5 {[%emt 0:00:15]} Qxc5 {[%emt 0:00:04]} 16. Be3 {[%emt 0:00:58]} Qe7 {[%emt 0:00:48]} 17. Rac1 {[%emt 0:00:28]} Qb7 {[%emt 0:00:29]} 18. Bc5 {[%emt 0:00:55]} Rfe8 {[%emt 0:00:44]} 19. e3 {[%emt 0:00:17]} h6 {[%emt 0:01:13]} 20. h4 {[%emt 0:00:03]} Rb8 {[%emt 0:00:29]} 21. Bd4 {[%emt 0:00:08]} Ne4 {[%emt 0:00:17]} 22. Qg4 {[%emt 0:00:46]} f6 {[%emt 0:00:21]} 23. f3 {[%emt 0:00:38]} c5 {[%emt 0:00:34]} 24. fxe4 {[%emt 0:01:30]} cxd4 {[%emt 0:00:04]} 25. Rxd4 {[%emt 0:00:32]} Qxb2 {[%emt 0:00:14]} 26. Rc7 {[%emt 0:00:15]} g5 {[%emt 0:01:23]} 27. Qd7 {[%emt 0:00:12]} Qxg2+ {[%emt 0:01:00]} 28. Kxg2 {[%emt 0:00:04]} Rb2+ {[%emt 0:00:03]} 29. Kh3 {[%emt 0:01:00]} Bf1+ {[%emt 0:00:59]} 30. Kg4 {[%emt 0:00:02]} Be2+ {[%emt 0:00:16]} 31. Kf5 {[%emt 0:00:02]} Re5+ {[%emt 0:00:14]} 32. Kg6 {[%emt 0:00:40]} 1-0

[Event "Kupreichik Memorial Rapid 2019"]
[Site "Minsk"]
[Date "2019.08.15"]
[Round "3.37"]
[White "Uzlavataya, Anhelina"]
[Black "Ustiugov, Boris"]
[Result "0-1"]
[ECO "D78"]
[WhiteElo "2051"]
[BlackElo "1567"]
[Annotator "NA"]
[PlyCount "80"]
[EventDate "2019.08.15"]
[EventType "swiss"]
[EventCountry "BLR"]
[SourceTitle "playchess.com"]
[Source "ChessBase"]
[SourceQuality "1"]
[TimeControl "900+10"]

1. Nf3 {[%emt 0:00:00]} Nf6 {[%emt 0:00:00]} 2. g3 {[%emt 0:00:00]} g6 {[%emt 0:00:00]} 3. Bg2 {[%emt 0:00:00]} Bg7 {[%emt 0:00:01]} 4. O-O {[%emt 0:00:00]} O-O {[%emt 0:00:01]} 5. d4 {[%emt 0:00:03]} d5 {[%emt 0:00:06]} 6. c4 {[%emt 0:00:05]} c6 {[%emt 0:00:01]} 7. Nbd2 {[%emt 0:00:31]} e6 {[%emt 0:00:38]} 8. b3 {[%emt 0:00:11]} Nbd7 {[%emt 0:00:13]} 9. Bb2 {[%emt 0:00:02]} b6 {[%emt 0:01:05]} 10. Qc2 {[%emt 0:00:25]} Bb7 {[%emt 0:00:04]} 11. Rad1 {[%emt 0:02:00]} Rc8 {[%emt 0:00:01]} 12. e4 {[%emt 0:01:33]} dxe4 {[%emt 0:01:03]} 13. Nxe4 {[%emt 0:00:03]} Nxe4 {[%emt 0:00:07]} 14. Qxe4 {[%emt 0:00:02]} Qc7 {[%emt 0:00:16]} 15. Qe2 {[%emt 0:00:35]} Rcd8 {[%emt 0:00:38]} 16. Ne5 {[%emt 0:01:52]} Nxe5 {[%emt 0:00:08]} 17. dxe5 {[%emt 0:00:03]} Rxd1 {[%emt 0:00:11]} 18. Rxd1 {[%emt 0:00:02]} Rd8 {[%emt 0:00:01]} 19. f4 {[%emt 0:01:02]} Bf8 {[%emt 0:00:19]} 20. Rd3 {[%emt 0:01:19]} Bc5+ {[%emt 0:01:33]} 21. Kf1 {[%emt 0:00:12]} h5 {[%emt 0:00:24]} 22. Qd1 {[%emt 0:00:33]} Rxd3 {[%emt 0:00:43]} 23. Qxd3 {[%emt 0:00:01]} Kf8 {[%emt 0:00:14]} 24. Ke2 {[%emt 0:00:41]} Ke7 {[%emt 0:00:17]} 25. Bc1 {[%emt 0:01:06]} Qd7 {[%emt 0:00:22]} 26. Bd2 {[%emt 0:00:50]} a5 {[%emt 0:00:08]} 27. Be3 {[%emt 0:02:14]} Bxe3 {[%emt 0:00:38]} 28. Kxe3 {[%emt 0:00:46]} Qc7 {[%emt 0:00:33]} 29. Be4 {[%emt 0:02:07]} Ke8 {[%emt 0:00:02]} 30. a3 {[%emt 0:01:08]} Qe7 {[%emt 0:00:51]} 31. Qd4 {[%emt 0:00:30]} c5 {[%emt 0:01:59]} 32. Qd6 {[%emt 0:00:06]} Qxd6 {[%emt 0:00:15]} 33. exd6 {[%emt 0:00:01]} Bxe4 {[%emt 0:00:04]} 34. Kxe4 {[%emt 0:00:03]} f6 {[%emt 0:00:07]} 35. Kf3 {[%emt 0:00:31]} Kd7 {[%emt 0:00:01]} 36. Ke4 {[%emt 0:00:02]} Kxd6 {[%emt 0:00:04]} 37. Ke3 {[%emt 0:00:15]} f5 {[%emt 0:00:14]} 38. Kd3 {[%emt 0:00:09]} e5 {[%emt 0:00:09]} 39. Ke3 {[%emt 0:00:11]} h4 {[%emt 0:01:31]} 40. fxe5+ Kxe5 {Kd4+} 0-1

[Event "Kupreichik Memorial Rapid 2019"]
[Site "Minsk"]
[Date "2019.08.15"]
[Round "3.38"]
[White "Talma, Sergei"]
[Black "Makarau, Yauheni"]
[Result "1-0"]
[ECO "C10"]
[WhiteElo "1882"]
[BlackElo "1459"]
[Annotator "NA"]
[PlyCount "96"]
[EventDate "2019.08.15"]
[EventType "swiss"]
[EventCountry "BLR"]
[SourceTitle "playchess.com"]
[Source "ChessBase"]
[SourceQuality "1"]
[TimeControl "900+10"]

1. d4 {[%emt 0:00:00]} d5 {[%emt 0:00:00]} 2. Nc3 {[%emt 0:00:00]} e6 {[%emt 0:00:00]} 3. e4 {[%emt 0:00:00]} dxe4 {[%emt 0:00:00]} 4. Nxe4 {[%emt 0:00:01]} Nf6 {[%emt 0:00:01]} 5. Bg5 {[%emt 0:00:03]} Be7 {[%emt 0:00:01]} 6. Bxf6 {[%emt 0:00:03]} Bxf6 {[%emt 0:00:02]} 7. Nf3 {[%emt 0:00:01]} O-O {[%emt 0:00:06]} 8. Bd3 {[%emt 0:00:02]} Nc6 {[%emt 0:00:05]} 9. c3 {[%emt 0:00:01]} b6 {[%emt 0:00:46]} 10. Nxf6+ {[%emt 0:00:50]} Qxf6 {[%emt 0:00:04]} 11. Be4 {[%emt 0:00:02]} Bd7 {[%emt 0:06:11]} 12. Ne5 {[%emt 0:02:29]} Nxe5 {[%emt 0:00:02]} 13. Bxa8 {[%emt 0:00:02]} Rxa8 {[%emt 0:00:01]} 14. dxe5 {[%emt 0:00:02]} Qxe5+ {[%emt 0:00:01]} 15. Qe2 {[%emt 0:00:18]} Qd5 {[%emt 0:01:20]} 16. f3 {[%emt 0:02:02]} Bb5 {[%emt 0:00:19]} 17. Qd2 {[%emt 0:02:10]} Qxd2+ {[%emt 0:02:15]} 18. Kxd2 {[%emt 0:00:02]} Rd8+ {[%emt 0:00:01]} 19. Kc2 {[%emt 0:01:33]} Kf8 {[%emt 0:01:53]} 20. Rad1 {[%emt 0:00:24]} Rxd1 {[%emt 0:00:14]} 21. Rxd1 {[%emt 0:00:01]} Ke7 {[%emt 0:00:01]} 22. Rd4 {[%emt 0:01:28]} Bf1 {[%emt 0:00:57]} 23. g3 {[%emt 0:00:42]} Bg2 {[%emt 0:00:24]} 24. f4 {[%emt 0:00:20]} Bd5 {[%emt 0:00:45]} 25. b3 {[%emt 0:02:10]} c5 {[%emt 0:00:54]} 26. Rd2 {[%emt 0:00:25]} Be4+ {[%emt 0:00:45]} 27. Kb2 {[%emt 0:00:08]} Bc6 {[%emt 0:01:07]} 28. c4 {[%emt 0:00:15]} h6 {[%emt 0:00:54]} 29. h4 {[%emt 0:00:28]} Bd7 {[%emt 0:00:03]} 30. Kc3 {[%emt 0:00:06]} Bc6 {[%emt 0:00:07]} 31. a3 {[%emt 0:00:10]} Bd7 {[%emt 0:00:35]} 32. b4 {[%emt 0:00:02]} cxb4+ 33. axb4 {[%emt 0:00:08]} a5 {[%emt 0:00:14]} 34. bxa5 {[%emt 0:00:16]} bxa5 {[%emt 0:00:00]} 35. Kd4 {[%emt 0:00:03]} Kd6 {[%emt 0:00:19]} 36. c5+ {[%emt 0:00:49]} Kc7 {[%emt 0:00:12]} 37. Rb2 {[%emt 0:00:56]} Bc6 {[%emt 0:00:04]} 38. Rb6 {[%emt 0:00:32]} f6 {[%emt 0:00:11]} 39. Ra6 {[%emt 0:00:14]} a4 {[%emt 0:00:01]} 40. Ra7+ {[%emt 0:00:02]} Kb8 {[%emt 0:00:29]} 41. Rxg7 {[%emt 0:00:33]} e5+ {[%emt 0:00:12]} 42. fxe5 {[%emt 0:00:25]} fxe5+ {[%emt 0:00:00]} 43. Kc3 {[%emt 0:00:01]} e4 {[%emt 0:00:04]} 44. g4 {[%emt 0:00:20]} Kc8 {[%emt 0:00:16]} 45. g5 {[%emt 0:00:19]} hxg5 {[%emt 0:00:19]} 46. Rxg5 {[%emt 0:00:30]} e3 {[%emt 0:00:11]} 47. Re5 {[%emt 0:00:05]} a3 {[%emt 0:00:09]} 48. Kb3 {[%emt 0:00:13]} Bd5+ 1-0